fUSD/lending_fUSD_20260528
["ID","MTS","AMOUNT","RATE_DAILY","PERIOD"]
[423207800,1779930643000,-528.48327171,0.0003578,2]
[423207798,1779930643000,-605.31118564,0.0003578,2]
[423207774,1779930643000,-344.45437934,0.0003578,2]
[423207801,1779930643000,-1068.40163352,0.0003578,2]
[423207799,1779930643000,-300.0,0.0003578,2]
[423207813,1779930643000,-1148.83589152,0.0003578,2]
[423207817,1779930643000,-452.52893397,0.0003578,2]
[423207816,1779930643000,-464.48677942,0.0003578,2]
[423207809,1779930643000,-527.62572404,0.0003578,2]
[423207805,1779930643000,-300.99795142,0.0003578,2]
[423207808,1779930643000,-344.45437934,0.0003578,2]
[423207810,1779930643000,-865.6208675,0.0003578,2]
[423207811,1779930643000,-950.32029804,0.0003578,2]
[423207812,1779930643000,-1800.09388364,0.0003578,2]
[423207806,1779930643000,-492.15481533,0.0003578,2]
[423207802,1779930643000,-727.07827244,0.0003578,2]
[423207807,1779930643000,-1263.96825586,0.0003578,2]
[423207887,1779930644000,-344.45437934,0.0003578,2]
[423207890,1779930644000,-1800.09388364,0.0003578,2]
[423207888,1779930644000,-865.6208675,0.0003578,2]
[423207886,1779930644000,-1263.96825587,0.0003578,2]
[423207882,1779930644000,-480.02767971,0.0003578,2]
[423207884,1779930644000,-302.21937029,0.0003578,2]
[423207881,1779930644000,-300.0,0.0003578,2]
[423207883,1779930644000,-727.07827245,0.0003578,2]
[423207877,1779930644000,-552.20840531,0.0003578,2]
[423207885,1779930644000,-300.0,0.0003578,2]
[423207889,1779930644000,-446.37584495,0.0003578,2]
[423207893,1779930644000,-300.0,0.0003578,2]
[423207892,1779930644000,-378.54611404,0.0003578,2]
[423207895,1779930644000,-1800.09388364,0.0003578,2]
[423207896,1779930644000,-605.86775479,0.0003578,2]
[423207894,1779930644000,-344.45437934,0.0003578,2]
[423207874,1779930644000,-950.32029804,0.0003578,2]
[423207897,1779930644000,-543.97795838,0.0003578,2]
[423207898,1779930644000,-344.45437934,0.0003578,2]
[423207900,1779930644000,-1800.09388364,0.0003578,2]
[423207903,1779930644000,-1800.09388364,0.0003578,2]
[423207899,1779930644000,-697.94727946,0.0003578,2]
[423207901,1779930644000,-344.76575966,0.0003578,2]
[423207902,1779930644000,-1800.09388364,0.0003578,2]
[423207891,1779930644000,-605.31118564,0.0003578,2]
[423207869,1779930644000,-300.0,0.0003578,2]
[423207870,1779930644000,-300.99795143,0.0003578,2]
[423207875,1779930644000,-1800.09388364,0.0003578,2]
[423207914,1779930644000,-156.4,0.000359,120]
[423207848,1779930644000,-523.56551988,0.0003578,2]
[423207849,1779930644000,-528.48327171,0.0003578,2]
[423207850,1779930644000,-727.07827244,0.0003578,2]
[423207854,1779930644000,-1263.96825586,0.0003578,2]
[423207855,1779930644000,-344.45437934,0.0003578,2]
[423207856,1779930644000,-726.77100362,0.0003578,2]
[423207851,1779930644000,-302.21937029,0.0003578,2]
[423207853,1779930644000,-300.99795142,0.0003578,2]
[423207852,1779930644000,-300.0,0.0003578,2]
[423207857,1779930644000,-865.6208675,0.0003578,2]
[423207858,1779930644000,-950.32029804,0.0003578,2]
[423207860,1779930644000,-1148.83589152,0.0003578,2]
[423207861,1779930644000,-595.46485208,0.0003578,2]
[423207863,1779930644000,-493.38669858,0.0003578,2]
[423207865,1779930644000,-300.0,0.0003578,2]
[423207866,1779930644000,-528.48327171,0.0003578,2]
[423207864,1779930644000,-605.31118564,0.0003578,2]
[423207867,1779930644000,-727.07827244,0.0003578,2]
[423207862,1779930644000,-464.48677943,0.0003578,2]
[423207868,1779930644000,-302.21937029,0.0003578,2]
[423207872,1779930644000,-344.45437934,0.0003578,2]
[423207873,1779930644000,-865.6208675,0.0003578,2]
[423207879,1779930644000,-605.31118564,0.0003578,2]
[423207871,1779930644000,-1263.96825586,0.0003578,2]
[423207876,1779930644000,-490.49993017,0.0003578,2]
[423207859,1779930644000,-1800.09388364,0.0003578,2]
[423207905,1779930644000,-1800.09388364,0.0003578,2]
[423207917,1779930644000,-314.0,0.000359,120]
[423207955,1779930644000,-25000.0,0.00036608,10]
[423207952,1779930644000,-63819.69884459,0.000365,10]
[423207960,1779930644000,-5000.0,0.00036766,10]
[423207957,1779930644000,-5000.0,0.00036616,10]
[423207956,1779930644000,-5000.0,0.00036611,10]
[423207959,1779930644000,-1059.1609,0.00036733,2]
[423207953,1779930644000,-507.0,0.00036523,14]
[423207958,1779930644000,-5000.0,0.00036731,10]
[423207961,1779930644000,-5000.0,0.0003684,10]
[423207963,1779930644000,-2505.7,0.00036898,10]
[423207973,1779930644000,-153.52,0.00037329,60]
[423207954,1779930644000,-5000.0,0.00036562,10]
[423207971,1779930644000,-153.52,0.00037129,60]
[423207962,1779930644000,-11754.61,0.00036868,10]
[423207965,1779930644000,-150.0,0.00036929,60]
[423207966,1779930644000,-151.0,0.00036929,60]
[423207968,1779930644000,-161.69,0.00037,14]
[423207969,1779930644000,-153.52,0.00037029,60]
[423207967,1779930644000,-2505.7,0.00036991,10]
[423207972,1779930644000,-153.52,0.00037229,60]
[423207974,1779930644000,-153.52,0.00037429,60]
[423207976,1779930644000,-153.52,0.00037529,60]
[423207975,1779930644000,-245.24347086,0.00037449,2]
[423207904,1779930644000,-1800.09388364,0.0003578,2]
[423207964,1779930644000,-153.52,0.00036929,60]
[423207951,1779930644000,-2506.71,0.00036456,10]
[423207970,1779930644000,-2000.0,0.000371,7]
[423207948,1779930644000,-150.0,0.000364,30]
[423207906,1779930644000,-1498.47451834,0.0003578,2]
[423207950,1779930644000,-380.0,0.000364,30]
[423207919,1779930644000,-215.46156935,0.00036,10]
[423207908,1779930644000,-180.0,0.0003588,30]
[423207911,1779930644000,-235.0,0.0003588,30]
[423207907,1779930644000,-1059.1609,0.00035837,2]
[423207909,1779930644000,-155.0,0.0003588,30]
[423207910,1779930644000,-282.0,0.0003588,30]
[423207924,1779930644000,-5000.0,0.00036043,10]
[423207921,1779930644000,-5000.0,0.00036011,10]
[423207923,1779930644000,-2527.74,0.00036025,10]
[423207926,1779930644000,-5000.0,0.00036068,10]
[423207928,1779930644000,-2527.73,0.00036144,10]
[423207912,1779930644000,-507.0,0.00035884,30]
[423207930,1779930644000,-25000.0,0.00036144,10]
[423207947,1779930644000,-150.0,0.000364,30]
[423207945,1779930644000,-2536.22,0.00036276,10]
[423207946,1779930644000,-5000.0,0.00036338,10]
[423207944,1779930644000,-5000.0,0.00036272,10]
[423207941,1779930644000,-5000.0,0.0003626,10]
[423207949,1779930644000,-257.0,0.000364,30]
[423207939,1779930644000,-299.9,0.00036247,2]
[423207936,1779930644000,-164.03,0.000362,7]
[423207937,1779930644000,-2511.85,0.00036214,10]
[423207931,1779930644000,-151.0,0.00036153,30]
[423207934,1779930644000,-2511.84,0.00036165,10]
[423208021,1779930645000,-800.0,0.00039583,14]
[423208020,1779930645000,-800.0,0.00039583,14]
[423208015,1779930645000,-6009.55083042,0.00039,4]
[423208013,1779930645000,-2400.0,0.00039,2]
[423208025,1779930645000,-800.0,0.00039583,14]
[423208008,1779930645000,-3000.0,0.00038904,120]
[423208024,1779930645000,-800.0,0.00039583,14]
[423208004,1779930645000,-380.0,0.000388,30]
[423208003,1779930645000,-217.11801919,0.00038759,11]
[423208006,1779930645000,-2317.0,0.00038895,11]
[423208016,1779930645000,-3420.1619697,0.00039,30]
[423208014,1779930645000,-215.46156935,0.00039,3]
[423208018,1779930645000,-434590.00675591,0.0003949,2]
[423208034,1779930645000,-212.77,0.00039726,60]
[423208017,1779930645000,-2316.0,0.00039085,11]
[423208022,1779930645000,-800.0,0.00039583,14]
[423208023,1779930645000,-800.0,0.00039583,14]
[423208027,1779930645000,-800.0,0.00039583,14]
[423208029,1779930645000,-250.0,0.00039601,30]
[423208026,1779930645000,-800.0,0.00039583,14]
[423208028,1779930645000,-250.0,0.00039601,30]
[423208037,1779930645000,-15152.22050542,0.00039759,10]
[423208035,1779930645000,-50000.0,0.00039726,30]
[423208033,1779930645000,-151.0,0.00039723,14]
[423208036,1779930645000,-500.0,0.00039734,120]
[423208009,1779930645000,-163.0,0.0003898,11]
[423208019,1779930645000,-355.46744331,0.00039569,2]
[423208010,1779930645000,-31350.1392889,0.00039,2]
[423207985,1779930645000,-205.93734224,0.0003788,2]
[423208005,1779930645000,-507.0,0.00038812,16]
[423207977,1779930645000,-301.0,0.00037529,60]
[423207986,1779930645000,-12697.70963367,0.00037888,2]
[423207984,1779930645000,-442.2,0.00037768,10]
[423207978,1779930645000,-380.0,0.000376,30]
[423207980,1779930645000,-153.52,0.00037629,60]
[423207981,1779930645000,-507.0,0.00037668,15]
[423207979,1779930645000,-1059.1609,0.00037629,2]
[423207982,1779930645000,-1521.972,0.0003767,2]
[423207983,1779930645000,-153.58557799,0.00037729,60]
[423207998,1779930645000,-157.56,0.00038356,60]
[423207988,1779930645000,-238772.7537649,0.00038,2]
[423207987,1779930645000,-156.4,0.000379,120]
[423208030,1779930645000,-218.4438059,0.00039648,120]
[423207995,1779930645000,-572.890768,0.00038,33]
[423207990,1779930645000,-200.0,0.00038,120]
[423207992,1779930645000,-222.0,0.00038,120]
[423207991,1779930645000,-235.33610114,0.00038,30]
[423207989,1779930645000,-257.60383091,0.00038,60]
[423207993,1779930645000,-164.03,0.00038,7]
[423207996,1779930645000,-2317.0,0.000381,11]
[423207997,1779930645000,-151.0,0.00038125,30]
[423207994,1779930645000,-466.0,0.00038,120]
[423208001,1779930645000,-1156.93,0.00038493,51]
[423208000,1779930645000,-1180.0,0.00038463,11]
[423208011,1779930645000,-10927.97458709,0.00039,2]
[423208002,1779930645000,-82563.68727902,0.000385,3]
[423208012,1779930645000,-100000.0,0.00039,10]
[423208007,1779930645000,-15919.43088279,0.000389,2]
[423208032,1779930645000,-150.0,0.000397,30]
[423207999,1779930645000,-306.79932057,0.00038356,2]
[423208050,1779930645000,-151.0,0.00039759,30]
[423208065,1779930645000,-172.269116,0.00039759,30]
[423208069,1779930645000,-151.0,0.00039759,30]
[423208068,1779930645000,-151.0,0.00039759,30]
[423208070,1779930645000,-151.0,0.00039759,30]
[423208071,1779930645000,-151.0,0.00039759,30]
[423208067,1779930645000,-172.269116,0.00039759,30]
[423208072,1779930645000,-299.91848,0.00039759,30]
[423208077,1779930645000,-151.0,0.00039759,10]
[423208078,1779930645000,-151.0,0.00039759,10]
[423208088,1779930645000,-151.0,0.00039759,30]
[423208080,1779930645000,-151.0,0.00039759,30]
[423208084,1779930645000,-151.0,0.00039759,30]
[423208079,1779930645000,-151.0,0.00039759,30]
[423208081,1779930645000,-151.0,0.00039759,30]
[423208082,1779930645000,-151.0,0.00039759,30]
[423208083,1779930645000,-248.910712,0.00039759,30]
[423208087,1779930645000,-151.0,0.00039759,30]
[423208085,1779930645000,-151.0,0.00039759,30]
[423208086,1779930645000,-151.0,0.00039759,30]
[423208089,1779930645000,-151.0,0.00039759,30]
[423208093,1779930645000,-1190.372738,0.00039759,30]
[423208091,1779930645000,-1190.372738,0.00039759,30]
[423208095,1779930645000,-180.0,0.00039759,120]
[423208092,1779930645000,-1190.372738,0.00039759,30]
[423208094,1779930645000,-154.0,0.00039759,120]
[423208096,1779930645000,-159.0,0.00039759,120]
[423208031,1779930645000,-6644.0,0.000397,117]
[423208073,1779930645000,-151.0,0.00039759,7]
[423208076,1779930645000,-272.76376,0.00039759,7]
[423208090,1779930645000,-1190.372738,0.00039759,30]
[423208075,1779930645000,-151.0,0.00039759,7]
[423208066,1779930645000,-172.269116,0.00039759,30]
[423208039,1779930645000,-151.0,0.00039759,30]
[423208040,1779930645000,-151.0,0.00039759,30]
[423208048,1779930645000,-151.0,0.00039759,30]
[423208041,1779930645000,-151.0,0.00039759,30]
[423208043,1779930645000,-151.0,0.00039759,30]
[423208042,1779930645000,-151.0,0.00039759,30]
[423208049,1779930645000,-151.0,0.00039759,30]
[423208045,1779930645000,-151.0,0.00039759,30]
[423208038,1779930645000,-30000.0,0.00039759,2]
[423208047,1779930645000,-151.0,0.00039759,30]
[423208046,1779930645000,-151.0,0.00039759,30]
[423208051,1779930645000,-216.200817,0.00039759,28]
[423208044,1779930645000,-151.0,0.00039759,30]
[423208055,1779930645000,-151.0,0.00039759,30]
[423208064,1779930645000,-172.269116,0.00039759,30]
[423208054,1779930645000,-216.200817,0.00039759,28]
[423208074,1779930645000,-151.0,0.00039759,7]
[423208063,1779930645000,-151.0,0.00039759,30]
[423208057,1779930645000,-151.0,0.00039759,30]
[423208052,1779930645000,-216.200817,0.00039759,28]
[423208061,1779930645000,-151.0,0.00039759,30]
[423208059,1779930645000,-218.458303,0.00039759,30]
[423208058,1779930645000,-218.458303,0.00039759,30]
[423208062,1779930645000,-151.0,0.00039759,30]
[423208056,1779930645000,-218.458303,0.00039759,30]
[423208053,1779930645000,-216.200817,0.00039759,28]
[423208060,1779930645000,-218.458303,0.00039759,30]
[423208101,1779930646000,-155.0,0.00039759,120]
[423208106,1779930646000,-19863.46274826,0.00039759,20]
[423208105,1779930646000,-225.76328037,0.00039759,120]
[423208100,1779930646000,-155.0,0.00039759,120]
[423208098,1779930646000,-153.0,0.00039759,120]
[423208097,1779930646000,-264043.46138251,0.00039759,24]
[423208099,1779930646000,-282.0,0.00039759,120]
[423208102,1779930646000,-235.0,0.00039759,120]
[423208103,1779930646000,-500.0,0.00039759,120]
[423208104,1779930646000,-360.14794537,0.00039759,120]
[423208108,1779930646000,-3131.23509527,0.00039759,30]
[423208107,1779930646000,-249366.71842899,0.00039759,30]
[423208111,1779930646000,-2703.8838994,0.000149,2]
[423208116,1779930646000,-301.70916874,0.000149,2]
[423208110,1779930646000,-550.0,0.000149,2]
[423208113,1779930646000,-1321.0,0.000149,2]
[423208114,1779930646000,-466.58784794,0.000149,2]
[423208112,1779930646000,-1209.48986691,0.000149,2]
[423208117,1779930646000,-3300.05184087,0.000149,2]
[423208119,1779930646000,-192.0,0.0001778,2]
[423208118,1779930646000,-147.27737614,0.000149,2]
[423208120,1779930646000,-92.07626302,0.0002,2]
[423208124,1779930646000,-235.0,0.00023,2]
[423208125,1779930646000,-249.95126302,0.0002325,2]
[423208122,1779930646000,-235.0,0.00021,2]
[423208123,1779930646000,-235.0,0.00022,2]
[423208121,1779930646000,-142.92373698,0.0002,2]
[423208109,1779930646000,-7152.29670463,0.00039759,30]
[423208167,1779931484000,-175.84,9.702e-05,2]
[423208169,1779931750000,-1789.01793326,0.000103,2]
[423208170,1779931750000,-85.70006328,0.00010478,2]
[423208200,1779931831000,-374.8,0.00014273,2]
[423208182,1779931831000,-64.29993672,0.00010478,2]
[423208184,1779931831000,-166.66,0.00013699,2]
[423208185,1779931831000,-157.73,0.00013763,2]
[423208189,1779931831000,-166.66,0.00013974,2]
[423208187,1779931831000,-250.49,0.00013806,2]
[423208188,1779931831000,-166.66,0.00013837,2]
[423208190,1779931831000,-189.74671734,0.00013984,2]
[423208183,1779931831000,-577.4646,0.00013458,2]
[423208203,1779931831000,-166.66,0.00014388,2]
[423208194,1779931831000,-166.66,0.00014112,2]
[423208191,1779931831000,-250.0,0.00014,2]
[423208193,1779931831000,-150.0,0.00014084,2]
[423208197,1779931831000,-9999.99,0.00014174,2]
[423208202,1779931831000,-925.544,0.00014339,2]
[423208186,1779931831000,-200.0,0.00013786,2]
[423208201,1779931831000,-156.73,0.00014287,2]
[423208210,1779931831000,-4633.17500968,0.00014833,2]
[423208209,1779931831000,-4633.17500968,0.00014822,2]
[423208214,1779931831000,-3316.43931987,0.00014867,2]
[423208205,1779931831000,-215.46156935,0.00014508,2]
[423208208,1779931831000,-4633.17500968,0.00014811,2]
[423208206,1779931831000,-4633.17500974,0.000148,2]
[423208212,1779931831000,-4633.17500968,0.00014844,2]
[423208211,1779931831000,-171.76407702,0.00014833,2]
[423208207,1779931831000,-171.76407705,0.000148,2]
[423208213,1779931831000,-4633.17500968,0.00014856,2]
[423208195,1779931831000,-609.0,0.00014173,2]
[423208199,1779931831000,-166.66,0.0001425,2]
[423208198,1779931831000,-322177.2571,0.00014239,2]
[423208196,1779931831000,-2000.0,0.00014174,2]
[423208204,1779931831000,-200.0,0.00014449,2]
[423208192,1779931831000,-1330.85,0.00014006,2]
[423208226,1779931832000,-4633.17500968,0.00014889,2]
[423208215,1779931832000,-1316.73568981,0.00014867,2]
[423208216,1779931832000,-171.76407702,0.00014867,2]
[423208217,1779931832000,-156.73,0.00014876,2]
[423208220,1779931832000,-772.68243208,0.00014878,2]
[423208222,1779931832000,-2624.20470494,0.00014878,2]
[423208232,1779931832000,-500.0,0.00014898,2]
[423208233,1779931832000,-500.0,0.00014898,2]
[423208235,1779931832000,-500.0,0.00014898,2]
[423208236,1779931832000,-500.0,0.00014898,2]
[423208224,1779931832000,-757.46931628,0.00014878,2]
[423208234,1779931832000,-500.0,0.00014898,2]
[423208218,1779931832000,-478.81855638,0.00014878,2]
[423208237,1779931832000,-325.03034277,0.00014898,2]
[423208227,1779931832000,-357.23527223,0.00014898,2]
[423208249,1779931832000,-714.51347563,0.00014899,2]
[423208242,1779931832000,-203.76945539,0.00014898,2]
[423208241,1779931832000,-500.0,0.00014898,2]
[423208244,1779931832000,-110052.16028761,0.00014899,2]
[423208248,1779931832000,-849.99999999,0.00014899,2]
[423208231,1779931832000,-500.0,0.00014898,2]
[423208246,1779931832000,-280.55352752,0.00014899,2]
[423208245,1779931832000,-1630.5387251,0.00014899,2]
[423208247,1779931832000,-1545.0,0.00014899,2]
[423208240,1779931832000,-500.0,0.00014898,2]
[423208239,1779931832000,-500.0,0.00014898,2]
[423208238,1779931832000,-500.0,0.00014898,2]
[423208229,1779931832000,-500.0,0.00014898,2]
[423208243,1779931832000,-151.70135183,0.00014898,2]
[423208253,1779931837000,-150.0,0.00014699,2]
[423208255,1779931837000,-150.0,0.00014699,2]
[423208286,1779931837000,-274.09394019,0.00014899,2]
[423208288,1779931837000,-4884.73407116,0.00014899,2]
[423208257,1779931837000,-3962.51796589,0.00014899,2]
[423208295,1779931838000,-1406.44466351,0.00014899,2]
[423208297,1779931838000,-511.99138363,0.00014899,2]
[423208300,1779931838000,-480.88745299,0.00014899,2]
[423208298,1779931838000,-1494.03019969,0.00014899,2]
[423208299,1779931838000,-309.12,0.00014899,2]
[423208292,1779931838000,-3330.500161,0.00014899,2]
[423208290,1779931838000,-1429.3958647,0.00014899,2]
[423208301,1779931838000,-210730.03307733,0.00014899,2]
[423208303,1779931838000,-526.29581916,0.00014899,2]
[423208302,1779931838000,-949.14934023,0.00014899,2]
[423208304,1779931838000,-650.000002,0.00014899,2]
[423208305,1779931838000,-539.41689933,0.00014899,2]
[423208309,1779931838000,-533.81330284,0.000149,2]
[423208307,1779931838000,-694.13676336,0.000149,2]
[423208317,1779931838000,-2993061.59013881,0.00015,2]
[423208318,1779931838000,-1530.77808329,0.00015,2]
[423208319,1779931838000,-371.035,0.00015,2]
[423208316,1779931838000,-500.0,0.00014999,2]
[423208314,1779931838000,-500.0,0.00014999,2]
[423208306,1779931838000,-205575.67544334,0.00014899,2]
[423208313,1779931838000,-165.0,0.00014959,2]
[423208310,1779931838000,-4633.17500968,0.000149,2]
[423208312,1779931838000,-1081.25518507,0.00014909,2]
[423208311,1779931838000,-171.76407702,0.000149,2]
[423208308,1779931838000,-5000.0,0.000149,2]
[423208315,1779931838000,-500.0,0.00014999,2]
[423208331,1779931839000,-775.71921033,0.00015,2]
[423208337,1779931840000,-5370.785,0.00015,2]
[423208369,1779931843000,-6536.10693626,0.00015,2]
[423208370,1779931843000,-4787.64497239,0.00015,2]
[423208372,1779931843000,-309.16438851,0.00015,2]
[423208373,1779931843000,-371.07571594,0.00015,2]
[423208377,1779931843000,-251.77178134,0.00015,2]
[423208379,1779931843000,-14569.21879463,0.00015,2]
[423208371,1779931843000,-903.73261565,0.00015,2]
[423208375,1779931843000,-2804.33990243,0.00015,2]
[423208446,1779931845000,-279.3291923,0.00015,2]
[423208452,1779931845000,-368.41035896,0.00015,2]
[423208441,1779931845000,-348080.5590747,0.00015,2]
[423208504,1779931846000,-1675.8,0.00015,2]
[423208505,1779931846000,-1163.01727458,0.00015,2]
[423208511,1779931876000,-152.72962546,0.00014238,2]
[423208512,1779931876000,-300.0,0.00014949,2]
[423208514,1779931876000,-4415.68754124,0.00015,2]
[423208513,1779931876000,-2208.0563333,0.00014988,2]
[423208516,1779932033000,87.59518697,8.834e-05,2]
[423208518,1779932809000,152.68,7.132e-05,2]
[423208520,1779932810000,152.68,8.083e-05,2]
[423208519,1779932810000,152.68,7.607e-05,2]
[423208523,1779932819000,-152.68,9.033e-05,2]
[423208521,1779932819000,-152.68,8.558e-05,2]
[423208524,1779932819000,-3.48141831,9.509e-05,2]
[423208522,1779932819000,-100.25481303,8.834e-05,2]
[423208528,1779932826000,-118.59074094,0.00010935,2]
[423208527,1779932826000,-152.68,0.0001046,2]
[423208526,1779932826000,-152.68,9.984e-05,2]
[423208525,1779932826000,-149.19858169,9.509e-05,2]
[423208531,1779932847000,-152.68,0.00011886,2]
[423208529,1779932847000,-34.08925906,0.00010935,2]
[423208532,1779932847000,-3.48173091,0.00012362,2]
[423208530,1779932847000,-152.68,0.00011411,2]
[423208537,1779933031000,-194.80173091,0.00012701,2]
[423208536,1779933031000,-149.19826909,0.00012362,2]
[423208538,1779933031000,-404.58280438,0.00012701,2]
[423208547,1779933031000,-4219.77,0.00014263,2]
[423208539,1779933031000,-152.68,0.00012837,2]
[423208540,1779933031000,-152.68,0.00013312,2]
[423208541,1779933031000,-152.68,0.00013788,2]
[423208543,1779933031000,-250.0,0.00014,2]
[423208544,1779933031000,-225.0062119,0.00014163,2]
[423208546,1779933031000,-164.78,0.00014263,2]
[423208545,1779933031000,-166.66,0.00014223,2]
[423208550,1779933031000,-166.66,0.00014516,2]
[423208558,1779933031000,-500.0,0.00014898,2]
[423208549,1779933031000,-1000.0,0.00014285,2]
[423208561,1779933031000,-613.6936395,0.00014898,2]
[423208560,1779933031000,-500.0,0.00014898,2]
[423208559,1779933031000,-500.0,0.00014898,2]
[423208557,1779933031000,-500.0,0.00014898,2]
[423208555,1779933031000,-165.0,0.00014877,2]
[423208553,1779933031000,-12748.78,0.000148,2]
[423208552,1779933031000,-4174.7111,0.000148,2]
[423208554,1779933031000,-166.66,0.00014809,2]
[423208551,1779933031000,-282.460597,0.00014626,2]
[423208542,1779933031000,-166.66,0.00013929,2]
[423208548,1779933031000,-152.68,0.00014263,2]
[423208556,1779933031000,-150.0,0.00014897,2]
[423208562,1779933032000,-500.0,0.00014898,2]
[423208563,1779933032000,-500.0,0.00014898,2]
[423208565,1779933032000,-500.0,0.00014899,2]
[423208576,1779933032000,-781.95418243,0.000149,2]
[423208566,1779933032000,-58387.0449,0.000149,2]
[423208575,1779933032000,-8318.13833651,0.000149,2]
[423208564,1779933032000,-753.02,0.00014899,2]
[423208572,1779933032000,-542.6862816,0.000149,2]
[423208574,1779933032000,-284.09838131,0.000149,2]
[423208568,1779933032000,-1401.15014624,0.000149,2]
[423208570,1779933032000,-5000.0,0.000149,2]
[423208567,1779933032000,-412.00132713,0.000149,3]
[423208577,1779933032000,-37970.0948209,0.000149,2]
[423208581,1779933037000,-1257.67525829,0.000149,2]
[423208585,1779933038000,-2389.3021537,0.00014988,2]
[423208595,1779933038000,-549.63887822,0.00014999,2]
[423208594,1779933038000,-500.0,0.00014999,2]
[423208596,1779933038000,-500.0,0.00014999,2]
[423208583,1779933038000,-1652.58737339,0.000149,2]
[423208584,1779933038000,-156.4661814,0.00014987,2]
[423208582,1779933038000,-2530.56756952,0.000149,2]
[423208588,1779933038000,-579.84,0.00014988,2]
[423208586,1779933038000,-205.1893313,0.00014988,2]
[423208587,1779933038000,-557.15,0.00014988,2]
[423208601,1779933038000,-615.1822681,0.00014999,2]
[423208589,1779933038000,-35962.8091288,0.00014988,2]
[423208593,1779933038000,-526.23867755,0.00014999,2]
[423208592,1779933038000,-500.0,0.00014999,2]
[423208591,1779933038000,-500.0,0.00014999,2]
[423208590,1779933038000,-5673.3808199,0.00014988,2]
[423208599,1779933038000,-500.0,0.00014999,2]
[423208598,1779933038000,-509.6140924,0.00014999,2]
[423208602,1779933038000,-2951273.69477731,0.00015,2]
[423208600,1779933038000,-644.77918433,0.00014999,2]
[423208603,1779933038000,-111124.17517962,0.00015,2]
[423208597,1779933038000,-514.29404086,0.00014999,2]
[423209194,1779933043000,-400.04257572,0.00015,2]
[423209192,1779933043000,-5.929e-05,0.00015,2]
[423209379,1779933044000,-605.01246306,0.00014798,2]
[423209538,1779933046000,-511.0,0.00014798,2]
[423209599,1779933046000,-1271.35841568,0.00014798,2]
[423209598,1779933046000,-38.10344333,0.00014798,2]
[423209603,1779933140000,203.976823,0.0002279,120]
[423209604,1779933338000,284.64,0.00027963,120]
[423209608,1779933801000,159.98,6.901e-05,2]
[423209609,1779933801000,159.98,8.281e-05,2]
[423209616,1779934046000,-15.01087173,0.0001298,7]
[423209615,1779934046000,-159.98,0.00012422,2]
[423209614,1779934046000,-152.41407447,0.00012362,7]
[423209613,1779934046000,-159.98,0.00011042,2]
[423209612,1779934046000,-366.09974648,0.00010628,2]
[423209611,1779934046000,-159.98,9.662e-05,2]
[423209617,1779934140000,1000.0,0.00027962,120]
[423209630,1779934231000,-8403.53,0.00013674,2]
[423209626,1779934231000,-147.0316829,0.00013488,2]
[423209623,1779934231000,-2334.69541237,0.0001342,2]
[423209622,1779934231000,-2906.90312363,0.0001342,2]
[423209621,1779934231000,-294.08550318,0.0001298,7]
[423209631,1779934231000,-166.66,0.00013699,2]
[423209624,1779934231000,-153.33627053,0.00013488,2]
[423209628,1779934231000,-629.9683171,0.00013673,2]
[423209625,1779934231000,-2.9683171,0.00013488,2]
[423209629,1779934231000,-570.0316829,0.00013673,2]
[423209632,1779934231000,-200.0,0.00013699,2]
[423209639,1779934231000,-625.80559495,0.00013919,2]
[423209638,1779934231000,-508.34438602,0.00013919,2]
[423209637,1779934231000,-500.0,0.00013919,2]